bitfinex-derivatives/quotes_SOLF0:USTF0_20250904
["timestamp","ask_amount","ask_price","bid_price","bid_amount"]
[1757026705159,7.44,204.83,204.76,0.03257962]
[1757026706451,7.44,204.82,204.63,11.20285731]
[1757026706665,7.44,204.81,204.64,7.97963792]
[1757026706855,7.44,204.81,204.65,4.24678061]
[1757026707156,7.44,204.91,204.67,7.47]
[1757026707351,7.44,204.89,204.69,7.47]
[1757026707556,7.44,204.89,204.71,7.47]
[1757026707752,0.03346795,204.81,204.73,7.47]
[1757026707958,0.03346795,204.81,204.74,4.24678061]
[1757026708169,0.03346795,204.81,204.75,4.24678061]
[1757026708458,0.03346795,204.81,204.76,11.71678061]
[1757026708459,7.47346795,204.81,204.76,11.71678061]
[1757026708662,7.47346795,204.81,204.77,4.24678061]
[1757026708862,7.44,204.81,204.76,7.47]
[1757026709059,7.47677155,204.81,204.77,4.27859156]
[1757026709264,7.47677155,204.81,204.77,0.03087567]
[1757026710267,144.32,204.8,204.77,0.03087567]
[1757026710664,151.76,204.8,204.77,0.03087567]
[1757026710864,151.78,204.8,204.77,0.03087567]
[1757026711267,7.44,204.8,204.78,4.25430932]
[1757026711466,151.68,204.8,204.77,0.03087567]
[1757026711661,7.44,204.8,204.77,0.03087567]
[1757026711866,144.16,204.8,204.77,7.50087567]
[1757026712168,144.19677155,204.81,204.78,4.25452312]
[1757026712369,0.03677155,204.81,204.77,7.50087567]
[1757026712769,144.05677155,204.81,204.77,0.03087567]
[1757026713273,7.44,204.8,204.77,0.03087567]
[1757026713570,144.05677155,204.81,204.77,0.03087567]
[1757026714278,7.44,204.8,204.77,0.03087567]
[1757026715373,144.53677155,204.81,204.77,0.03087567]
[1757026715579,7.44,204.8,204.77,0.03087567]
[1757026716073,7.44,204.78,204.77,0.03087567]
[1757026716377,150.88,204.78,204.77,0.03087567]
[1757026716672,150.86,204.78,204.77,0.03087567]
[1757026716880,150.8,204.78,204.77,0.03087567]
[1757026717474,7.44,204.77,204.64,7.47]
[1757026717670,7.44,204.77,204.65,3.83215859]
[1757026717874,7.44,204.77,204.64,7.47]
[1757026718175,143.26,204.76,204.66,7.47]
[1757026718474,143.26,204.76,204.67,3.83304723]
[1757026718669,0.03523242,204.73,204.68,11.30304723]
[1757026718868,0.03523242,204.73,204.63,4.00708336]
[1757026719070,131.7,204.72,204.64,11.30297058]
[1757026719378,0.03554866,204.7,204.64,7.47]
[1757026719574,142.98,204.69,204.64,7.47]
[1757026719781,7.44,204.68,204.6,7.47]
[1757026720085,7.44,204.68,204.61,3.83644547]
[1757026720378,7.44,204.68,204.6,7.47]
[1757026720379,7.44,204.68,204.62,3.83787854]
[1757026720575,142.92,204.67,204.6,7.47]
[1757026720881,7.44,204.68,204.61,3.83698844]
[1757026721068,142.82,204.67,204.62,11.30698844]
[1757026721273,142.79658369,204.66,204.59,7.47]
[1757026721475,142.79658369,204.66,204.6,3.83778305]
[1757026721778,142.79658369,204.66,204.56,4.00708336]
[1757026721779,142.79658369,204.66,204.61,11.30778305]
[1757026721975,142.79658369,204.66,204.61,7.47]
[1757026722475,7.44,204.65,204.57,7.47]
[1757026722680,7.44,204.65,204.58,3.83876417]
[1757026722877,142.79658369,204.66,204.59,3.83876417]
[1757026723081,142.79658369,204.66,204.57,7.47]
[1757026723272,7.47658369,204.66,204.58,3.83981971]
[1757026723476,7.44,204.64,204.53,7.47]
[1757026723786,7.44,204.64,204.54,3.83968706]
[1757026723979,7.44,204.64,204.55,3.83968706]
[1757026724175,0.03523127,204.61,204.53,7.47]
[1757026724477,142.44,204.6,204.54,3.84170265]
[1757026724674,0.03523127,204.61,204.53,7.47]
[1757026724880,142.41523127,204.61,204.54,3.83867744]
[1757026725076,142.41523127,204.61,204.53,7.47]
[1757026725474,0.03523127,204.61,204.53,7.47]
[1757026725680,142.21523127,204.61,204.55,7.47]
[1757026725977,7.44,204.64,204.55,7.47]
[1757026726177,142.14,204.63,204.55,7.47]
[1757026726479,0.03193303,204.6,204.5,7.47]
[1757026726679,0.03193303,204.6,204.52,7.47]
[1757026726879,0.03193303,204.6,204.54,7.47]
[1757026727284,0.03193303,204.6,204.56,7.47]
[1757026727480,0.03193303,204.6,204.51,7.47]
[1757026727675,25.16,204.62,204.53,7.47]
[1757026727879,0.03378318,204.58,204.54,3.8332674]
[1757026728081,0.03378318,204.58,204.5,7.98]
[1757026728382,0.03378318,204.58,204.52,7.98]
[1757026728578,0.03378318,204.58,204.45,68.4719]
[1757026728579,0.03378318,204.58,204.53,3.83325281]
[1757026728776,0.03378318,204.58,204.55,7.98]
[1757026728972,5.78,204.63,204.51,7.98]
[1757026729172,0.03116916,204.59,204.53,7.98]
[1757026729373,0.03116916,204.59,204.55,7.98]
[1757026729576,0.03116916,204.59,204.5,7.98]
[1757026729785,0.03116916,204.59,204.52,7.98]
[1757026730083,5.78,204.63,204.52,7.98]
[1757026730480,0.03636753,204.58,204.52,7.98]
[1757026732772,128.61636753,204.58,204.52,7.98]
[1757026733681,136.11636753,204.58,204.48,7.98]
[1757026733979,136.08,204.58,204.48,7.98]
[1757026734185,136.08,204.58,204.39,40.4829]
[1757026734186,136.08,204.58,204.42,11.80915792]
[1757026734389,136.08,204.58,204.43,11.80915792]
[1757026734390,7.53219318,204.55,204.43,11.80915792]
[1757026734575,7.53219318,204.55,204.43,7.98]
[1757026734780,7.5,204.55,204.44,3.82677464]
[1757026734978,0.03754735,204.51,204.43,7.98]
[1757026735183,0.03754735,204.51,204.44,3.82379464]
[1757026735383,0.03754735,204.51,204.43,7.98]
[1757026735783,0.03754735,204.51,204.45,7.98]
[1757026735987,0.03754735,204.51,204.46,3.81869203]
[1757026736185,0.03754735,204.51,204.48,7.98]
[1757026736382,0.03754735,204.51,204.44,7.98]
[1757026736587,0.03754735,204.51,204.42,4.00708336]
[1757026736588,0.03754735,204.51,204.45,3.81802253]
[1757026736788,0.03754735,204.51,204.46,3.81802253]
[1757026736984,0.03754735,204.51,204.47,3.81794164]
[1757026737188,0.03754735,204.51,204.43,7.98]
[1757026737389,0.03754735,204.51,204.45,7.98]
[1757026737587,0.03754735,204.51,204.41,7.98]
[1757026737787,0.03754735,204.51,204.43,7.98]
[1757026737983,0.03754735,204.51,204.44,3.81840173]
[1757026738188,0.03754735,204.51,204.43,7.98]
[1757026740889,7.5,204.5,204.39,3.78692294]
[1757026741191,7.5,204.55,204.4,3.78790009]
[1757026741383,127.62,204.54,204.38,7.98]
[1757026741689,0.03399186,204.47,204.4,7.98]
[1757026741890,0.03399186,204.47,204.41,7.98]
[1757026744084,0.03399186,204.47,204.42,7.98]
[1757026744285,0.03399186,204.47,204.34,4.00708336]
[1757026744488,0.03399186,204.47,204.36,7.98]
[1757026744688,7.5,204.49,204.38,7.98]
[1757026745084,0.03280317,204.44,204.38,7.98]
[1757026750397,0.03280317,204.44,204.39,3.77916098]
[1757026750594,0.03280317,204.44,204.38,7.98]
[1757026750790,0.03280317,204.44,204.4,7.98]
[1757026752300,0.03280317,204.44,204.36,4.4035]
[1757026752598,0.03280317,204.44,204.38,7.98]
[1757026752793,0.03280317,204.44,204.39,3.78036325]
[1757026752993,0.03280317,204.44,204.37,7.98]
[1757026753200,0.03280317,204.44,204.39,7.98]
[1757026753389,0.03280317,204.44,204.41,7.98]
[1757026753594,0.03280317,204.44,204.43,7.98]
[1757026754301,0.03280317,204.44,204.43,11.75856232]
[1757026754601,7.5,204.55,204.44,7.98]
[1757026755395,7.5,204.55,204.46,7.98]
[1757026755800,0.03163386,204.52,204.46,7.98]
[1757026756501,0.03163386,204.52,204.48,7.98]
[1757026756896,7.5,204.55,204.48,7.98]
[1757026757600,0.03143259,204.54,204.48,7.98]
[1757026760394,0.03143259,204.54,204.49,11.76387091]
[1757026760596,0.03143259,204.54,204.44,8.40898336]
[1757026760900,0.03143259,204.54,204.46,7.97]
[1757026761099,0.03143259,204.54,204.47,3.79489297]
[1757026761294,0.03143259,204.54,204.48,3.79489297]
[1757026761496,0.03143259,204.54,204.49,3.79489297]
[1757026761695,0.03143259,204.54,204.5,3.79489297]
[1757026761898,0.03143259,204.54,204.51,3.79489297]
[1757026762095,7.81,204.59,204.48,7.97]
[1757026762296,0.03371507,204.55,204.5,7.97]
[1757026762505,0.03371507,204.55,204.52,7.97]
[1757026762702,0.03371507,204.55,204.54,7.97]
[1757026762903,0.03371507,204.55,204.54,11.76779961]
[1757026767008,0.03371507,204.55,204.54,3.79779961]
[1757026767905,0.03371507,204.55,204.54,11.76779961]
[1757026768410,0.03371507,204.55,204.54,3.79779961]
[1757026768806,7.84371507,204.55,204.54,3.77171252]
[1757026769008,7.84371507,204.55,204.49,7.97]
[1757026769205,7.84371507,204.55,204.5,11.74246412]
[1757026769401,0.03371507,204.55,204.51,3.77246412]
[1757026769606,7.81,204.54,204.5,7.97]
[1757026769807,7.81,204.54,204.51,3.77313459]
[1757026770010,7.81,204.54,204.52,3.77313459]
[1757026770310,7.81,204.54,204.5,7.97]
[1757026770611,7.81,204.54,204.51,3.77294071]
[1757026770912,7.81,204.54,204.5,7.97]
[1757026771107,7.81,204.54,204.51,3.7733905]
[1757026771315,7.81,204.54,204.46,11.97708336]
[1757026771508,7.81,204.54,204.47,3.77403971]
[1757026771708,7.81,204.54,204.48,3.77403971]
[1757026772010,7.81,204.54,204.49,11.74403971]
[1757026772212,7.81,204.54,204.5,3.77403971]
[1757026772406,7.81,204.54,204.49,7.97]
[1757026772611,7.81,204.54,204.5,3.77469724]
[1757026772910,7.81,204.54,204.49,7.97]
[1757026773102,7.81,204.54,204.5,3.77469724]
[1757026773310,7.84371507,204.55,204.49,7.97]
[1757026773611,7.81,204.54,204.5,3.7752985]
[1757026773812,7.81,204.54,204.49,7.97]
[1757026774111,7.81,204.54,204.5,3.7752977]
[1757026774314,7.81,204.54,204.45,11.97708336]
[1757026774511,7.81,204.54,204.46,3.77608906]
[1757026774714,7.81,204.54,204.47,3.77608906]
[1757026774910,7.81,204.54,204.48,3.77608906]
[1757026775215,7.81,204.54,204.49,11.74608906]
[1757026775410,7.81,204.54,204.5,3.77608906]
[1757026775712,7.81,204.54,204.49,7.97]
[1757026775912,7.81,204.54,204.5,3.77639404]
[1757026776213,7.84371507,204.55,204.45,11.97708336]
[1757026776415,7.84371507,204.55,204.46,3.77724493]
[1757026776617,7.84371507,204.55,204.47,3.77724493]
[1757026776910,7.84371507,204.55,204.48,3.77724493]
[1757026777214,7.81,204.54,204.4,4.00708336]
[1757026777403,7.81,204.52,204.41,3.78044644]
[1757026777609,7.81,204.52,204.42,3.78044644]
[1757026777914,7.81,204.48,204.38,7.97]
[1757026778111,7.81,204.48,204.39,3.78162125]
[1757026778310,7.81,204.48,204.38,7.97]
[1757026784620,7.81,204.48,204.33,7.97]
[1757026785221,0.03266999,204.43,204.33,7.97]
[1757026785423,7.84266999,204.43,204.33,7.97]
[1757026789927,7.84266999,204.43,204.29,7.58]
[1757026790322,7.81,204.43,204.29,7.58]
[1757026790523,0.03578596,204.38,204.29,7.58]
[1757026793030,7.64,204.37,204.29,7.58]
[1757026794729,7.64,204.37,204.22,7.58]
[1757026800926,7.64,204.37,204.25,4.4059]
[1757026801126,7.64,204.49,204.26,7.58]
[1757026801331,7.64,204.47,204.26,7.58]
[1757026801734,7.64,204.47,204.29,7.58]
[1757026802133,7.64,204.47,204.29,11.985]
[1757026802335,7.64,204.47,204.3,7.58]
[1757026804733,7.64,204.45,204.3,7.58]
[1757026806535,7.64,204.45,204.23,4.05095993]
[1757026806536,22.34,204.45,204.23,7.58]
[1757026809733,14.7,204.41,204.23,7.58]
[1757026809942,22.34,204.4,204.23,7.58]
[1757026810541,7.64,204.38,204.23,7.58]
[1757026811439,48.8,204.38,204.23,7.58]
[1757026812739,48.8,204.38,204.24,7.58]
[1757026816137,63.5,204.38,204.16,7.58]
[1757026816341,378.82,204.38,204.16,7.58]
[1757026820346,337.66,204.38,204.16,7.58]
[1757026820537,7.51,204.36,204.16,7.58]
[1757026820737,131.84,204.35,204.16,7.58]
[1757026820941,7.51,204.34,204.16,7.58]
[1757026821442,110.72,204.35,204.18,7.56]
[1757026821645,110.72,204.35,204.24,7.56]
[1757026822040,322.83,204.38,204.24,7.56]
[1757026822245,315.32,204.38,204.24,7.56]
[1757026822643,315.32,204.38,204.26,7.56]
[1757026823446,322.83,204.38,204.26,7.56]
[1757026824348,322.83,204.38,204.21,7.56]
[1757026825850,322.83,204.38,204.23,7.56]
[1757026826051,322.83,204.38,204.21,68.5517]
[1757026826052,7.51,204.42,204.24,76.1024]
[1757026826354,57.08,204.44,204.29,7.56]
[1757026827051,57.08,204.44,204.31,7.56]
[1757026827254,7.51,204.47,204.31,7.56]
[1757026827447,7.51,204.47,204.32,7.56]
[1757026827954,7.51,204.47,204.33,7.56]
[1757026829348,7.51,204.52,204.34,7.56]
[1757026829851,7.51,204.52,204.35,4.4036]
[1757026830049,7.51,204.52,204.36,7.56]
[1757026830455,7.51,204.52,204.37,7.56]
[1757026832550,7.51,204.52,204.38,7.56]
[1757026834562,7.51,204.58,204.38,7.56]
[1757026835554,7.51,204.58,204.4,68.4852]
[1757026835755,7.51,204.58,204.41,4.04388671]
[1757026836059,7.51,204.58,204.42,7.56]
[1757026836251,7.51,204.58,204.41,4.04388671]
[1757026836252,7.51,204.58,204.44,7.56]
[1757026836450,7.51,204.58,204.46,7.56]
[1757026838157,7.51,204.58,204.47,7.56]
[1757026840260,93.58,204.67,204.47,7.56]
[1757026840559,7.51,204.66,204.47,7.56]
[1757026840972,7.51,204.66,204.46,130.28]
[1757026840973,7.51,204.66,204.48,7.56]
[1757026841161,7.51,204.66,204.48,68.4593]
[1757026841355,7.51,204.66,204.49,7.56]
[1757026841564,7.51,204.66,204.54,7.56]
[1757026841860,7.51,204.73,204.56,7.56]
[1757026842366,7.51,204.73,204.57,112.54]
[1757026842562,7.51,204.73,204.56,7.56]
[1757026842766,7.51,204.73,204.53,7.56]
[1757026843265,7.51,204.73,204.55,7.56]
[1757026843466,7.51,204.73,204.55,115.06]
[1757026843666,7.51,204.73,204.55,7.56]
[1757026843867,7.51,204.73,204.56,7.56]
[1757026845165,7.51,204.73,204.57,4.399]
[1757026845369,7.51,204.73,204.58,7.56]
[1757026846274,7.51,204.73,204.58,11.9586]
[1757026846469,7.51,204.85,204.59,7.56]
[1757026846673,137.27,204.85,204.59,7.56]
[1757026847074,137.27,204.85,204.58,68.4255]
[1757026847075,137.27,204.85,204.6,4.3983]
[1757026847277,137.27,204.85,204.61,7.56]
[1757026847478,0.0308835,204.75,204.61,7.56]
[1757026847675,0.0308835,204.75,204.62,7.56]
[1757026847873,7.51,204.79,204.62,7.56]
[1757026848274,7.51,204.79,204.64,8.18]
[1757026848574,7.77,204.84,204.64,8.18]
[1757026854480,137.11,204.84,204.64,8.18]
[1757026857375,151.81,204.84,204.64,8.18]
[1757026858281,14.7,204.78,204.57,8.18]
[1757026858478,138.01,204.77,204.57,8.18]
[1757026859583,152.71,204.77,204.57,8.18]
[1757026860478,144.94,204.77,204.5,8.18]
[1757026860678,14.7,204.72,204.5,138.28]
[1757026860982,7.77,204.7,204.51,8.18]
[1757026861179,22.47,204.7,204.51,8.18]
[1757026861780,83.86,204.71,204.51,8.18]
[1757026861781,7.77,204.68,204.51,8.18]
[1757026862082,21.34,204.67,204.51,8.18]
[1757026862280,7.77,204.66,204.51,8.18]
[1757026862680,7.77,204.66,204.42,8.18]
[1757026862880,7.77,204.66,204.44,8.18]
[1757026863279,16.84,204.65,204.44,8.18]
[1757026863484,7.77,204.64,204.44,8.18]
[1757026864680,7.77,204.64,204.45,8.18]
[1757026865280,7.77,204.64,204.46,3.76050032]
[1757026865479,7.77,204.64,204.47,8.18]
[1757026866784,7.77,204.64,204.49,4.4007]
[1757026867088,7.77,204.64,204.5,8.18]
[1757026868088,314.76,204.73,204.5,81.1]
[1757026868292,129.66,204.72,204.51,3.77418793]
[1757026868484,7.77,204.71,204.53,8.18]
[1757026868684,7.77,204.71,204.55,8.18]
[1757026870889,7.77,204.71,204.5,11.96618943]
[1757026871191,7.77,204.69,204.52,8.18]
[1757026871384,7.77,204.69,204.53,3.78724333]
[1757026871584,7.77,204.69,204.52,8.18]
[1757026871786,7.77,204.69,204.53,3.78988463]
[1757026871982,7.77,204.69,204.52,8.18]
[1757026872184,93.28,204.68,204.53,3.79051997]
[1757026872393,314.76,204.73,204.54,11.97051997]
[1757026872394,7.77,204.67,204.54,11.97051997]
[1757026872690,7.77,204.67,204.54,8.18]
[1757026872898,7.77,204.72,204.56,8.18]
[1757026873089,7.77,204.72,204.58,8.18]
[1757026873393,7.77,204.72,204.6,8.18]
[1757026873597,314.76,204.73,204.62,8.18]
[1757026873893,7.77,204.75,204.63,3.78640044]
[1757026874197,7.77,204.75,204.65,8.18]
[1757026874394,329.56,204.85,204.66,3.78640044]
[1757026874593,0.03575351,204.71,204.67,3.78640044]
[1757026874797,7.77,204.8,204.68,8.18]
[1757026874999,0.03660942,204.71,204.68,8.18]
[1757026875193,0.03660942,204.71,204.63,8.18]
[1757026875394,7.77,204.75,204.64,3.78829447]
[1757026875695,0.0373587,204.69,204.65,3.78829447]
[1757026875893,0.0373587,204.69,204.61,8.18]
[1757026876194,7.77,204.68,204.56,8.18]
[1757026876500,7.77,204.68,204.57,3.79221554]
[1757026876696,7.77,204.68,204.58,3.79221554]
[1757026876999,0.03717096,204.64,204.59,11.97221554]
[1757026877199,0.03717096,204.64,204.6,3.79221554]
[1757026877389,0.03717096,204.64,204.59,8.18]
[1757026877593,0.03717096,204.64,204.6,3.79584876]
[1757026877790,0.03717096,204.64,204.59,8.18]
[1757026877999,7.63717096,204.64,204.54,8.03]
[1757026878196,7.63717096,204.64,204.55,3.79780246]
[1757026878392,7.63717096,204.64,204.56,3.79780246]
[1757026878596,0.03717096,204.64,204.57,11.82780246]
[1757026878899,0.03717096,204.64,204.58,3.79780246]
[1757026879098,0.03717096,204.64,204.57,8.03]
[1757026879297,0.03717096,204.64,204.59,8.03]
[1757026879500,0.03717096,204.64,204.6,3.78644651]
[1757026879695,0.03717096,204.64,204.62,8.03]
[1757026880000,0.03717096,204.64,204.58,8.03]
[1757026880196,0.03717096,204.64,204.59,3.78615071]
[1757026880398,0.03717096,204.64,204.6,3.78615071]
[1757026880597,0.03717096,204.64,204.62,8.03]
[1757026880798,0.03717096,204.64,204.58,8.03]
[1757026880993,0.03717096,204.64,204.59,3.78763668]
[1757026881195,0.03717096,204.64,204.6,11.81763668]
[1757026881398,7.63717096,204.64,204.56,8.03]
[1757026881595,7.63717096,204.64,204.57,3.79067704]
[1757026881798,7.63717096,204.64,204.58,3.79067704]
[1757026882002,7.63717096,204.64,204.59,3.79067704]
[1757026882195,7.6,204.63,204.56,8.03]
[1757026882702,7.6,204.63,204.53,314.86]
[1757026882903,7.6,204.63,204.54,3.79233919]
[1757026883104,7.6,204.63,204.55,3.79233919]
[1757026883401,7.6,204.63,204.53,314.86]
[1757026883598,0.03717096,204.64,204.55,8.03]
[1757026883797,0.03717096,204.64,204.56,3.79281265]
[1757026883993,0.03717096,204.64,204.55,8.03]
[1757026884197,0.03717096,204.64,204.56,3.79293902]
[1757026884396,0.03717096,204.64,204.58,8.03]
[1757026884802,0.03717096,204.64,204.6,8.03]
[1757026885102,0.03717096,204.64,204.57,8.03]
[1757026885299,0.03717096,204.64,204.58,3.79200389]
[1757026885503,0.03717096,204.64,204.57,8.03]
[1757026885703,0.03717096,204.64,204.58,3.79316998]
[1757026885901,0.03717096,204.64,204.57,8.03]
[1757026887100,7.63717096,204.64,204.53,314.86]
[1757026887297,7.63717096,204.64,204.54,3.79542217]
[1757026887502,7.63717096,204.64,204.52,8.03]
[1757026887705,0.03717096,204.64,204.54,8.03]
[1757026887904,0.03717096,204.64,204.55,3.79529992]
[1757026888206,7.6,204.69,204.56,3.79529992]
[1757026888408,0.03531378,204.62,204.54,8.03]
[1757026888604,0.03531378,204.62,204.55,3.79434678]
[1757026888797,0.03531378,204.62,204.54,8.03]
[1757026889003,0.03531378,204.62,204.55,3.79501768]
[1757026889303,0.03531378,204.62,204.54,8.03]
[1757026889511,0.03531378,204.62,204.55,3.79522704]
[1757026889708,0.03531378,204.62,204.54,8.03]
[1757026891309,0.03531378,204.62,204.56,8.03]
[1757026891502,0.03531378,204.62,204.57,3.79438598]
[1757026891700,0.03531378,204.62,204.53,8.03]
[1757026891903,0.03531378,204.62,204.55,8.03]
[1757026892104,0.03531378,204.62,204.56,132.35405741]
[1757026892303,0.03531378,204.62,204.57,3.79405741]
[1757026892505,0.03531378,204.62,204.56,128.56]
[1757026892705,0.03531378,204.62,204.57,3.79441546]
[1757026893004,0.03531378,204.62,204.53,8.03]
[1757026893209,0.03531378,204.62,204.54,110.37530057]
[1757026893411,7.6,204.66,204.55,3.79530057]
[1757026893608,0.03361073,204.6,204.54,106.58]
[1757026893804,0.03361073,204.6,204.56,8.03]
[1757026895211,0.03361073,204.6,204.5,136.33]
[1757026895404,0.03361073,204.6,204.52,8.03]
[1757026895610,7.6,204.66,204.53,3.83649464]
[1757026895805,0.03382256,204.58,204.54,8.03]
[1757026896012,0.03382256,204.58,204.51,8.03]
[1757026896314,0.03382256,204.58,204.53,8.03]
[1757026896513,0.03382256,204.58,204.54,3.80016517]
[1757026896706,0.03382256,204.58,204.55,3.80016517]
[1757026896914,0.03382256,204.58,204.51,8.03]
[1757026897208,0.03382256,204.58,204.52,3.80103729]
[1757026897415,0.03382256,204.58,204.53,3.80103729]
[1757026897614,0.03382256,204.58,204.55,8.03]
[1757026897815,0.03382256,204.58,204.51,8.03]
[1757026898016,0.03382256,204.58,204.52,3.80290072]
[1757026898214,0.03382256,204.58,204.53,3.80290072]
[1757026898410,0.03382256,204.58,204.54,3.80290072]
[1757026898607,0.03382256,204.58,204.56,8.03]
[1757026898810,0.03382256,204.58,204.52,8.03]
[1757026899016,0.03382256,204.58,204.53,3.80431084]
[1757026899218,0.03382256,204.58,204.54,3.80431084]
[1757026899418,0.03382256,204.58,204.55,3.80431084]
[1757026899618,0.03382256,204.58,204.57,8.03]
[1757026900715,0.03382256,204.58,204.52,128.06]
[1757026900912,0.03382256,204.58,204.53,3.80883241]
[1757026901110,0.03382256,204.58,204.55,8.03]
[1757026901312,0.03382256,204.58,204.57,8.03]
[1757026902523,0.03382256,204.58,204.57,11.84279116]
[1757026904620,7.6,204.71,204.57,11.84279116]
[1757026904820,7.6,204.71,204.59,8.03]
[1757026905020,7.6,204.71,204.6,3.81279116]
[1757026905219,7.6,204.71,204.61,11.84279116]
[1757026905419,7.6,204.71,204.62,3.81279116]
[1757026905621,7.6,204.71,204.63,3.81279116]
[1757026905821,7.6,204.71,204.61,8.03]
[1757026906019,7.6,204.71,204.64,0.03284891]
[1757026910234,8.08,204.71,204.64,0.03284891]
[1757026910432,7.6,204.71,204.64,0.03284891]
[1757026910821,8.08,204.71,204.64,0.03284891]
[1757026911429,7.94,204.69,204.64,0.03284891]
[1757026912134,8.42,204.69,204.64,0.03284891]
[1757026913735,0.48,204.68,204.64,0.03284891]
[1757026914036,7.94,204.69,204.64,0.03284891]
[1757026914333,141.88,204.7,204.64,0.03284891]
[1757026914334,127.18,204.68,204.64,0.03284891]
[1757026914733,8.42,204.67,204.64,0.03284891]
[1757026914935,8.42,204.67,204.55,7.95]
[1757026915124,7.94,204.67,204.55,7.95]
[1757026916330,0.03499598,204.63,204.55,7.95]
[1757026917437,0.03499598,204.63,204.56,3.81239938]
[1757026917634,0.03499598,204.63,204.55,7.95]
[1757026920140,0.03499598,204.63,204.56,3.79620616]
[1757026920333,0.03499598,204.63,204.55,7.95]
[1757026920533,0.03499598,204.63,204.56,3.79606577]
[1757026920734,0.03499598,204.63,204.55,7.95]
[1757026921037,7.94,204.62,204.51,7.95]
[1757026921628,0.03182691,204.59,204.51,7.95]
[1757026926247,0.03182691,204.59,204.52,7.95]
[1757026932960,7.97182691,204.59,204.48,4.01845335]
[1757026933161,7.97182691,204.59,204.47,11.96845335]
[1757026933756,7.94,204.58,204.47,11.96845335]
[1757026933958,7.94,204.58,204.47,7.95]
[1757026934361,0.03196253,204.55,204.47,7.95]
[1757026935257,7.94,204.54,204.44,7.95]
[1757026938355,7.94,204.54,204.4,7.42]
[1757026938961,0.03090377,204.49,204.4,7.42]
[1757026939963,0.03090377,204.49,204.4,11.43845335]
[1757026940162,0.03090377,204.49,204.41,7.42]
[1757026940862,0.03090377,204.49,204.41,11.43845335]
[1757026941060,0.03090377,204.49,204.42,7.42]
[1757026941259,0.03090377,204.49,204.43,4.01845335]
[1757026941462,0.03090377,204.49,204.44,7.42]
[1757026942163,0.03090377,204.49,204.43,7.42]
[1757026947260,0.03090377,204.49,204.44,7.42]
[1757026949270,0.03090377,204.49,204.45,7.42]
[1757026949872,7.49,204.59,204.45,7.42]
[1757026950168,7.49,204.59,204.46,7.42]
[1757026950368,7.49,204.59,204.47,7.42]
[1757026950871,7.49,204.59,204.48,7.42]
[1757026951167,7.49,204.59,204.46,4.04349611]
[1757026951168,7.49,204.59,204.51,0.03665669]
[1757026951473,314.92,204.62,204.52,7.42]
[1757026951765,7.49,204.63,204.52,7.42]
[1757026952462,7.49,204.63,204.55,0.03213474]
[1757026952666,7.49,204.63,204.55,7.45213474]
[1757026954172,7.49,204.69,204.55,7.45213474]
[1757026954573,7.49,204.69,204.55,7.42]
[1757026954766,7.49,204.69,204.6,0.03574382]
[1757026956173,7.49,204.69,204.61,7.42]
[1757026957677,7.49,204.69,204.6,0.03574382]
[1757026967080,7.49,204.69,204.61,7.42]
[1757026967280,322.49,204.74,204.61,7.42]
[1757026967881,7.49,204.74,204.66,7.77]